[Event "Early-Titled-Tuesday-Blitz-January-16-2024"]
[Site "Chess.com"]
[Date "2024.01.16"]
[Round "9"]
[White "Statham_01"]
[Black "Brahianzevich"]
[Result "1-0"]
[WhiteElo "2552"]
[BlackElo "2438"]
[TimeControl "180+1"]
[EndTime "9:49:22 PST"]
[Termination "Statham_01 won by checkmate"]

1. e4 {[%clk 0:03:00.9]} 1... c5 {[%clk 0:02:59.5]} 2. Nf3 {[%clk 0:02:58.7]}
2... d6 {[%clk 0:02:59.3]} 3. d4 {[%clk 0:02:58.7]} 3... cxd4 {[%clk 0:03:00.2]}
4. Nxd4 {[%clk 0:02:59.6]} 4... Nf6 {[%clk 0:03:00.5]} 5. Nc3 {[%clk 0:03:00.3]}
5... a6 {[%clk 0:03:00.7]} 6. a3 {[%clk 0:03:00.9]} 6... Nc6 {[%clk 0:02:55.6]}
7. Bg5 {[%clk 0:02:59.1]} 7... e6 {[%clk 0:02:54.6]} 8. Qd2 {[%clk 0:02:58.8]}
8... Bd7 {[%clk 0:02:49.7]} 9. O-O-O {[%clk 0:02:58.6]} 9... b5 {[%clk
0:02:44.6]} 10. Nxc6 {[%clk 0:02:53.3]} 10... Bxc6 {[%clk 0:02:44.3]} 11. Qe1
{[%clk 0:01:57.4]} 11... Qb6 {[%clk 0:02:23.1]} 12. Bxf6 {[%clk 0:01:28.8]}
12... gxf6 {[%clk 0:02:22.5]} 13. Nd5 {[%clk 0:01:29.6]} 13... Bxd5 {[%clk
0:02:19.1]} 14. exd5 {[%clk 0:01:30.5]} 14... e5 {[%clk 0:02:16.9]} 15. Bd3
{[%clk 0:01:28.7]} 15... a5 {[%clk 0:01:58.7]} 16. Kb1 {[%clk 0:01:21.8]} 16...
Qc5 {[%clk 0:01:44.6]} 17. f4 {[%clk 0:01:03.1]} 17... Be7 {[%clk 0:01:23]} 18.
Rf1 {[%clk 0:00:59.7]} 18... Rb8 {[%clk 0:01:14.6]} 19. Qe4 {[%clk 0:00:48.7]}
19... a4 {[%clk 0:01:01.7]} 20. c3 {[%clk 0:00:45.4]} 20... h5 {[%clk
0:00:56.8]} 21. fxe5 {[%clk 0:00:31.8]} 21... dxe5 {[%clk 0:00:56.6]} 22. d6
{[%clk 0:00:28.3]} 22... Bd8 {[%clk 0:00:41.8]} 23. Be2 {[%clk 0:00:14.7]} 23...
Rb6 {[%clk 0:00:39.1]} 24. Ka1 {[%clk 0:00:11.5]} 24... Kf8 {[%clk 0:00:30.3]}
25. d7 {[%clk 0:00:11.1]} 25... Rh6 {[%clk 0:00:23.9]} 26. h3 {[%clk 0:00:10.1]}
26... Rd6 {[%clk 0:00:15.8]} 27. g4 {[%clk 0:00:08.9]} 27... hxg4 {[%clk
0:00:15.6]} 28. hxg4 {[%clk 0:00:09.8]} 28... Rh2 {[%clk 0:00:15.4]} 29. Rxd6
{[%clk 0:00:05.1]} 29... Qxd6 {[%clk 0:00:16.3]} 30. Rh1 {[%clk 0:00:04.7]}
30... Rxh1+ {[%clk 0:00:16]} 31. Qxh1 {[%clk 0:00:05.6]} 31... Qxd7 {[%clk
0:00:15.6]} 32. Qf1 {[%clk 0:00:05.9]} 32... Ke7 {[%clk 0:00:12.3]} 33. Bxb5
{[%clk 0:00:05.3]} 33... Qa7 {[%clk 0:00:13.1]} 34. Bc4 {[%clk 0:00:04.6]} 34...
Kf8 {[%clk 0:00:12.6]} 35. Qf5 {[%clk 0:00:04.3]} 35... Qc5 {[%clk 0:00:12.2]}
36. Bd3 {[%clk 0:00:03.4]} 36... Qg1+ {[%clk 0:00:12.1]} 37. Ka2 {[%clk
0:00:03.7]} 37... Qc5 {[%clk 0:00:12.3]} 38. Qd7 {[%clk 0:00:04]} 38... Qb6
{[%clk 0:00:10.2]} 39. Qd5 {[%clk 0:00:04.1]} 39... Qe6 {[%clk 0:00:10.2]} 40.
Qxe6 {[%clk 0:00:03.8]} 40... fxe6 {[%clk 0:00:11.1]} 41. Bb5 {[%clk 0:00:04.7]}
41... f5 {[%clk 0:00:11.1]} 42. gxf5 {[%clk 0:00:05.6]} 42... exf5 {[%clk
0:00:12]} 43. Bxa4 {[%clk 0:00:06.4]} 43... f4 {[%clk 0:00:12.7]} 44. Bc6 {[%clk
0:00:06.4]} 44... Ke7 {[%clk 0:00:13.4]} 45. Kb1 {[%clk 0:00:06.2]} 45... Kd6
{[%clk 0:00:13.9]} 46. Be4 {[%clk 0:00:06.9]} 46... Kc5 {[%clk 0:00:14]} 47. Kc2
{[%clk 0:00:07.6]} 47... Kb5 {[%clk 0:00:13.8]} 48. b3 {[%clk 0:00:07.1]} 48...
Be7 {[%clk 0:00:13.9]} 49. a4+ {[%clk 0:00:07]} 49... Ka5 {[%clk 0:00:13.8]} 50.
Kd3 {[%clk 0:00:07.4]} 50... Bd6 {[%clk 0:00:13.3]} 51. Kc4 {[%clk 0:00:07.7]}
51... Be7 {[%clk 0:00:12.7]} 52. Kd5 {[%clk 0:00:05.9]} 52... Bf6 {[%clk
0:00:13]} 53. Kc6 {[%clk 0:00:05]} 53... Be7 {[%clk 0:00:12.6]} 54. Kb7 {[%clk
0:00:05.4]} 54... Ba3 {[%clk 0:00:12.5]} 55. Bf3 {[%clk 0:00:04.3]} 55... Bb2
{[%clk 0:00:12.8]} 56. c4 {[%clk 0:00:02.4]} 56... Bd4 {[%clk 0:00:13.4]} 57.
Kc6 {[%clk 0:00:02.4]} 57... Kb4 {[%clk 0:00:13.5]} 58. Bd1 {[%clk 0:00:01.9]}
58... e4 {[%clk 0:00:12.8]} 59. Kd5 {[%clk 0:00:02.7]} 59... f3 {[%clk 0:00:13]}
60. Kxd4 {[%clk 0:00:03.2]} 60... f2 {[%clk 0:00:11.5]} 61. Be2 {[%clk
0:00:03.5]} 61... e3 {[%clk 0:00:11.3]} 62. Kxe3 {[%clk 0:00:03.9]} 62... Kxb3
{[%clk 0:00:12.2]} 63. c5 {[%clk 0:00:04]} 63... Kxa4 {[%clk 0:00:12.5]} 64. c6
{[%clk 0:00:03.8]} 64... Ka5 {[%clk 0:00:12.9]} 65. c7 {[%clk 0:00:04.4]} 65...
Kb6 {[%clk 0:00:13.4]} 66. c8=Q {[%clk 0:00:04.8]} 66... Ka7 {[%clk 0:00:13.4]}
67. Qa6+ {[%clk 0:00:05.7]} 67... Kb8 {[%clk 0:00:13.9]} 68. Qb6+ {[%clk
0:00:06.4]} 68... Ka8 {[%clk 0:00:14.3]} 69. Bf3# {[%clk 0:00:06.8]} 1-0

[Event "Early-Titled-Tuesday-Blitz-January-16-2024"]
[Site "Chess.com"]
[Date "2024.01.16"]
[Round "9"]
[White "cthulhuuu"]
[Black "aistrel"]
[Result "1-0"]
[WhiteElo "2414"]
[BlackElo "2528"]
[TimeControl "180+1"]
[EndTime "9:49:24 PST"]
[Termination "cthulhuuu won by checkmate"]

1. e4 {[%clk 0:03:00.1]} 1... c5 {[%clk 0:02:53.6]} 2. Nf3 {[%clk 0:03:00.2]}
2... a6 {[%clk 0:02:53.6]} 3. g3 {[%clk 0:03:00.3]} 3... b5 {[%clk 0:02:51.2]}
4. Bg2 {[%clk 0:03:00.6]} 4... Bb7 {[%clk 0:02:51.7]} 5. d3 {[%clk 0:03:00.9]}
5... e6 {[%clk 0:02:51.3]} 6. O-O {[%clk 0:03:00.8]} 6... Be7 {[%clk 0:02:49.7]}
7. Re1 {[%clk 0:03:00.7]} 7... d6 {[%clk 0:02:49.9]} 8. c3 {[%clk 0:03:00.6]}
8... Nd7 {[%clk 0:02:48.7]} 9. a4 {[%clk 0:02:55.9]} 9... h5 {[%clk 0:02:47]}
10. h4 {[%clk 0:02:51.7]} 10... Ngf6 {[%clk 0:02:46.4]} 11. Ng5 {[%clk
0:02:33.7]} 11... Qb6 {[%clk 0:02:22.2]} 12. axb5 {[%clk 0:02:30.8]} 12... axb5
{[%clk 0:02:22.5]} 13. Rxa8+ {[%clk 0:02:30.3]} 13... Bxa8 {[%clk 0:02:23.4]}
14. e5 {[%clk 0:02:27.4]} 14... Bxg2 {[%clk 0:02:13.1]} 15. exf6 {[%clk
0:02:24.1]} 15... gxf6 {[%clk 0:02:14]} 16. Nxe6 {[%clk 0:01:37.6]} 16... Qb7
{[%clk 0:02:08]} 17. Nf4 {[%clk 0:01:23.3]} 17... Bf3 {[%clk 0:02:07.7]} 18. Qb3
{[%clk 0:01:10.6]} 18... Ne5 {[%clk 0:02:08]} 19. Nd2 {[%clk 0:00:32.5]} 19...
Kf8 {[%clk 0:01:17.6]} 20. d4 {[%clk 0:00:29.3]} 20... c4 {[%clk 0:01:14.6]} 21.
Qc2 {[%clk 0:00:19.9]} 21... Nd3 {[%clk 0:01:04.7]} 22. Nxd3 {[%clk 0:00:19.4]}
22... cxd3 {[%clk 0:01:05.6]} 23. Qxd3 {[%clk 0:00:19.7]} 23... Bd5 {[%clk
0:01:01.8]} 24. Ne4 {[%clk 0:00:17.3]} 24... Rg8 {[%clk 0:00:58.3]} 25. Kh2
{[%clk 0:00:16.7]} 25... Qd7 {[%clk 0:00:54.8]} 26. Bh6+ {[%clk 0:00:16.7]}
26... Rg7 {[%clk 0:00:52.7]} 27. Qe3 {[%clk 0:00:07.1]} 27... Be6 {[%clk
0:00:41.6]} 28. f3 {[%clk 0:00:05.3]} 28... Qa7 {[%clk 0:00:39]} 29. Nf2 {[%clk
0:00:04.2]} 29... Qb7 {[%clk 0:00:37.3]} 30. Nh3 {[%clk 0:00:03.2]} 30... Kg8
{[%clk 0:00:31.7]} 31. Bxg7 {[%clk 0:00:03.8]} 31... Kxg7 {[%clk 0:00:32.6]} 32.
Nf4 {[%clk 0:00:04.3]} 32... Bf8 {[%clk 0:00:29.4]} 33. Nxe6+ {[%clk 0:00:04.6]}
33... fxe6 {[%clk 0:00:30.3]} 34. Qxe6 {[%clk 0:00:05.2]} 34... Qxf3 {[%clk
0:00:31]} 35. Qe2 {[%clk 0:00:04.7]} 35... Qf5 {[%clk 0:00:29.8]} 36. Rf1 {[%clk
0:00:04.5]} 36... Qd5 {[%clk 0:00:30.4]} 37. Qf3 {[%clk 0:00:04.2]} 37... Qe6
{[%clk 0:00:28.8]} 38. Qxh5 {[%clk 0:00:04.1]} 38... d5 {[%clk 0:00:29.3]} 39.
Qf5 {[%clk 0:00:04.2]} 39... Qe2+ {[%clk 0:00:27.5]} 40. Rf2 {[%clk 0:00:04.7]}
40... Qe7 {[%clk 0:00:28.1]} 41. Qxd5 {[%clk 0:00:04.3]} 41... Qc7 {[%clk
0:00:27.1]} 42. Qxb5 {[%clk 0:00:03.8]} 42... Bd6 {[%clk 0:00:26.8]} 43. Qf5
{[%clk 0:00:03.8]} 43... Bxg3+ {[%clk 0:00:26.6]} 44. Kg2 {[%clk 0:00:04.2]}
44... Bxf2 {[%clk 0:00:27.5]} 45. Qxf2 {[%clk 0:00:04.5]} 45... Qb7+ {[%clk
0:00:28.4]} 46. Kh3 {[%clk 0:00:03.5]} 46... Kf7 {[%clk 0:00:29]} 47. Kh2 {[%clk
0:00:03.3]} 47... Qd7 {[%clk 0:00:29.5]} 48. Qg3 {[%clk 0:00:03.7]} 48... Qb7
{[%clk 0:00:29.7]} 49. b4 {[%clk 0:00:04]} 49... Qc6 {[%clk 0:00:29.5]} 50. h5
{[%clk 0:00:04.2]} 50... Qc4 {[%clk 0:00:30.1]} 51. Kh3 {[%clk 0:00:04.1]} 51...
Ke6 {[%clk 0:00:30.7]} 52. Qg4+ {[%clk 0:00:03.9]} 52... Ke7 {[%clk 0:00:31.1]}
53. Qf3 {[%clk 0:00:04.3]} 53... Qb3 {[%clk 0:00:29.3]} 54. Kg4 {[%clk
0:00:03.8]} 54... Qc2 {[%clk 0:00:29.6]} 55. Kf4 {[%clk 0:00:04.1]} 55... Kf8
{[%clk 0:00:27.5]} 56. Qe4 {[%clk 0:00:04]} 56... Qf2+ {[%clk 0:00:26.9]} 57.
Qf3 {[%clk 0:00:03.7]} 57... Qd2+ {[%clk 0:00:27.5]} 58. Kf5 {[%clk 0:00:03.7]}
58... Qg5+ {[%clk 0:00:27.1]} 59. Ke6 {[%clk 0:00:04.2]} 59... Kg7 {[%clk
0:00:22.5]} 60. Qf5 {[%clk 0:00:03]} 60... Qe3+ {[%clk 0:00:21.9]} 61. Kd6
{[%clk 0:00:02]} 61... Qg3+ {[%clk 0:00:20.9]} 62. Kd7 {[%clk 0:00:02]} 62...
Qh4 {[%clk 0:00:18]} 63. Qg6+ {[%clk 0:00:02.9]} 63... Kh8 {[%clk 0:00:17.7]}
64. h6 {[%clk 0:00:03.2]} 64... Qh3+ {[%clk 0:00:17.5]} 65. Kd8 {[%clk
0:00:02.7]} 65... Qe3 {[%clk 0:00:13.2]} 66. Qg7# {[%clk 0:00:02.9]} 1-0

[Event "Early-Titled-Tuesday-Blitz-January-16-2024"]
[Site "Chess.com"]
[Date "2024.01.16"]
[Round "9"]
[White "BardArtem"]
[Black "Bauman_Guy"]
[Result "1-0"]
[WhiteElo "2821"]
[BlackElo "2913"]
[TimeControl "180+1"]
[EndTime "9:49:26 PST"]
[Termination "BardArtem won by resignation"]

1. e4 {[%clk 0:03:00.9]} 1... c5 {[%clk 0:02:43.5]} 2. c3 {[%clk 0:03:00.7]}
2... d5 {[%clk 0:02:43.2]} 3. exd5 {[%clk 0:03:01.6]} 3... Qxd5 {[%clk
0:02:43.8]} 4. Nf3 {[%clk 0:03:00.4]} 4... Nf6 {[%clk 0:02:43.4]} 5. Na3 {[%clk
0:03:00.5]} 5... Nc6 {[%clk 0:02:43.4]} 6. Bc4 {[%clk 0:03:00.3]} 6... Qd8
{[%clk 0:02:42.2]} 7. d4 {[%clk 0:03:00.2]} 7... e6 {[%clk 0:02:40.1]} 8. O-O
{[%clk 0:02:59.8]} 8... a6 {[%clk 0:02:37.8]} 9. Nc2 {[%clk 0:02:57.9]} 9... b5
{[%clk 0:02:37.2]} 10. Be2 {[%clk 0:02:57.3]} 10... Bb7 {[%clk 0:02:37.2]} 11.
a4 {[%clk 0:02:54.9]} 11... b4 {[%clk 0:02:36.2]} 12. Be3 {[%clk 0:02:33.5]}
12... Nd5 {[%clk 0:02:29.6]} 13. Qd2 {[%clk 0:02:15.2]} 13... Be7 {[%clk
0:02:24.2]} 14. dxc5 {[%clk 0:02:08.3]} 14... bxc3 {[%clk 0:02:24.3]} 15. bxc3
{[%clk 0:02:08.4]} 15... Nxe3 {[%clk 0:02:22.1]} 16. Nxe3 {[%clk 0:01:55.8]}
16... Bxc5 {[%clk 0:02:12.7]} 17. Rab1 {[%clk 0:01:55.1]} 17... Qc7 {[%clk
0:02:02.3]} 18. Nd4 {[%clk 0:01:46.9]} 18... O-O {[%clk 0:01:59.3]} 19. Bf3
{[%clk 0:01:43]} 19... Na5 {[%clk 0:01:54.2]} 20. Bxb7 {[%clk 0:01:36.6]} 20...
Nxb7 {[%clk 0:01:55.1]} 21. Rfd1 {[%clk 0:01:32.2]} 21... Rfc8 {[%clk
0:01:50.4]} 22. Qa2 {[%clk 0:01:29.5]} 22... Nd6 {[%clk 0:01:40.6]} 23. g3
{[%clk 0:01:21.1]} 23... Rab8 {[%clk 0:01:29.3]} 24. Rxb8 {[%clk 0:01:14.5]}
24... Rxb8 {[%clk 0:01:27.1]} 25. Qe2 {[%clk 0:00:59]} 25... Ne4 {[%clk
0:01:15.6]} 26. Qxa6 {[%clk 0:00:52.5]} 26... Nxc3 {[%clk 0:01:09.1]} 27. Rd3
{[%clk 0:00:42.7]} 27... Ne4 {[%clk 0:00:31.9]} 28. Nxe6 {[%clk 0:00:37.4]}
28... Qe7 {[%clk 0:00:21.6]} 29. Nxc5 {[%clk 0:00:17.2]} 29... Nxc5 {[%clk
0:00:21.7]} 30. Qd6 {[%clk 0:00:17.7]} 30... Qxd6 {[%clk 0:00:21.9]} 31. Rxd6
{[%clk 0:00:18.6]} 31... Nxa4 {[%clk 0:00:22.5]} 32. Rd7 {[%clk 0:00:17.6]}
32... g6 {[%clk 0:00:22.2]} 33. Ng4 {[%clk 0:00:15.9]} 33... Kg7 {[%clk
0:00:18]} 34. Ne5 {[%clk 0:00:14.3]} 34... Rf8 {[%clk 0:00:18.6]} 35. g4 {[%clk
0:00:11.5]} 35... Nc5 {[%clk 0:00:18.4]} 36. Ra7 {[%clk 0:00:10]} 36... g5
{[%clk 0:00:16]} 37. Kg2 {[%clk 0:00:07.9]} 37... Ne6 {[%clk 0:00:14.1]} 38. Kg3
{[%clk 0:00:08.1]} 38... h6 {[%clk 0:00:13.5]} 39. h4 {[%clk 0:00:08.2]} 39...
Nf4 {[%clk 0:00:13]} 40. hxg5 {[%clk 0:00:05.8]} 40... hxg5 {[%clk 0:00:13.9]}
41. Nf3 {[%clk 0:00:06.5]} 41... Ne6 {[%clk 0:00:10.5]} 42. Ne1 {[%clk
0:00:04.5]} 42... Rd8 {[%clk 0:00:09.4]} 43. Ng2 {[%clk 0:00:04.2]} 43... Rd3+
{[%clk 0:00:06.4]} 44. Ne3 {[%clk 0:00:04.5]} 44... Kg6 {[%clk 0:00:06.9]} 45.
Kf3 {[%clk 0:00:04.5]} 45... Rb3 {[%clk 0:00:06.1]} 46. Ra8 {[%clk 0:00:05]}
46... Nd4+ {[%clk 0:00:04.4]} 47. Ke4 {[%clk 0:00:05.2]} 47... Rb4 {[%clk
0:00:04.9]} 48. Nd5 {[%clk 0:00:04.2]} 48... Rc4 {[%clk 0:00:02.1]} 49. Kd3
{[%clk 0:00:04.8]} 49... Rc2 {[%clk 0:00:02.5]} 50. Kxd4 {[%clk 0:00:04.6]}
50... Rxf2 {[%clk 0:00:03.2]} 51. Rg8+ {[%clk 0:00:03.4]} 51... Kh6 {[%clk
0:00:03.5]} 52. Rh8+ {[%clk 0:00:03.6]} 52... Kg7 {[%clk 0:00:03.6]} 53. Rh5
{[%clk 0:00:04]} 53... Kg6 {[%clk 0:00:02.9]} 54. Rh8 {[%clk 0:00:03.5]} 54...
Kg7 {[%clk 0:00:02.5]} 55. Ra8 {[%clk 0:00:03.4]} 55... Rg2 {[%clk 0:00:03.1]}
56. Ne3 {[%clk 0:00:04.1]} 56... Rf2 {[%clk 0:00:03.4]} 57. Ke4 {[%clk
0:00:04.4]} 57... Rf4+ {[%clk 0:00:03.4]} 58. Kd3 {[%clk 0:00:05.2]} 58... Kg6
{[%clk 0:00:02.8]} 59. Ra6+ {[%clk 0:00:05.5]} 59... Kh7 {[%clk 0:00:02.4]} 60.
Ke2 {[%clk 0:00:05.6]} 60... f6 {[%clk 0:00:02.7]} 61. Rc6 {[%clk 0:00:05.2]}
61... Kg7 {[%clk 0:00:03]} 62. Rc4 {[%clk 0:00:04.8]} 62... Kg6 {[%clk
0:00:03.2]} 63. Rxf4 {[%clk 0:00:03.6]} 63... gxf4 {[%clk 0:00:04.1]} 64. Nf5
{[%clk 0:00:04.3]} 1-0

[Event "Early-Titled-Tuesday-Blitz-January-16-2024"]
[Site "Chess.com"]
[Date "2024.01.16"]
[Round "9"]
[White "GMKrikor"]
[Black "deribas12345"]
[Result "1-0"]
[WhiteElo "2736"]
[BlackElo "2489"]
[TimeControl "180+1"]
[EndTime "9:49:28 PST"]
[Termination "GMKrikor won on time"]

1. Nf3 {[%clk 0:03:00.9]} 1... c5 {[%clk 0:02:40.7]} 2. c4 {[%clk 0:03:00.9]}
2... Nf6 {[%clk 0:02:39.8]} 3. Nc3 {[%clk 0:03:01]} 3... g6 {[%clk 0:02:39.4]}
4. e4 {[%clk 0:02:59.9]} 4... d6 {[%clk 0:02:38.6]} 5. d4 {[%clk 0:02:59.8]}
5... cxd4 {[%clk 0:02:38.3]} 6. Nxd4 {[%clk 0:02:57.4]} 6... Bg7 {[%clk
0:02:39.2]} 7. Be2 {[%clk 0:02:55.1]} 7... O-O {[%clk 0:02:34.2]} 8. Be3 {[%clk
0:02:55.1]} 8... Nc6 {[%clk 0:02:29.8]} 9. Nc2 {[%clk 0:02:55.3]} 9... a6 {[%clk
0:02:25]} 10. O-O {[%clk 0:02:55.2]} 10... Bd7 {[%clk 0:02:20.7]} 11. Rc1 {[%clk
0:02:55.2]} 11... Ne5 {[%clk 0:01:58.3]} 12. h3 {[%clk 0:02:54.5]} 12... b5
{[%clk 0:01:53.5]} 13. cxb5 {[%clk 0:02:47.3]} 13... axb5 {[%clk 0:01:52.3]} 14.
f4 {[%clk 0:02:45.2]} 14... Nc4 {[%clk 0:01:49.7]} 15. Bxc4 {[%clk 0:02:44.9]}
15... bxc4 {[%clk 0:01:50.6]} 16. Bd4 {[%clk 0:02:40.5]} 16... Rb8 {[%clk
0:01:42.6]} 17. Rb1 {[%clk 0:02:35.7]} 17... Qa5 {[%clk 0:01:37.9]} 18. Ne3
{[%clk 0:02:00.1]} 18... e5 {[%clk 0:01:24.5]} 19. fxe5 {[%clk 0:02:00.5]} 19...
dxe5 {[%clk 0:01:24.7]} 20. Nxc4 {[%clk 0:01:58.7]} 20... Qb4 {[%clk 0:01:04.3]}
21. Nxe5 {[%clk 0:01:47.7]} 21... Rfd8 {[%clk 0:01:01.5]} 22. a3 {[%clk
0:01:43.9]} 22... Qe7 {[%clk 0:00:43.7]} 23. Qf3 {[%clk 0:01:12.8]} 23... Be8
{[%clk 0:00:40.7]} 24. Qf2 {[%clk 0:01:02.6]} 24... Rxd4 {[%clk 0:00:33.3]} 25.
Qxd4 {[%clk 0:01:00.9]} 25... Nh5 {[%clk 0:00:20.1]} 26. Nd5 {[%clk 0:00:42.5]}
26... Qxe5 {[%clk 0:00:20]} 27. Qxe5 {[%clk 0:00:30.2]} 27... Bxe5 {[%clk
0:00:20.9]} 28. b4 {[%clk 0:00:30.8]} 28... Ng3 {[%clk 0:00:17.7]} 29. Rfe1
{[%clk 0:00:30.7]} 29... Bb5 {[%clk 0:00:16.2]} 30. Kf2 {[%clk 0:00:20.6]} 30...
Bd3 {[%clk 0:00:15.4]} 31. Ne7+ {[%clk 0:00:21.3]} 31... Kg7 {[%clk 0:00:14.2]}
32. Nc6 {[%clk 0:00:22.2]} 32... Nxe4+ {[%clk 0:00:09.7]} 33. Ke3 {[%clk
0:00:16.4]} 33... Bxb1 {[%clk 0:00:09.5]} 34. Nxb8 {[%clk 0:00:10.3]} 34... Nc3
{[%clk 0:00:09.8]} 35. Nc6 {[%clk 0:00:07.7]} 35... Bf6 {[%clk 0:00:09.8]} 36.
Nd4 {[%clk 0:00:05.8]} 36... Nd5+ {[%clk 0:00:09.2]} 37. Kf3 {[%clk 0:00:03.8]}
37... Bd3 {[%clk 0:00:08.9]} 38. Nc6 {[%clk 0:00:03.6]} 38... Bb5 {[%clk
0:00:06.9]} 39. Ne5 {[%clk 0:00:03.2]} 39... Nb6 {[%clk 0:00:05.3]} 40. Ng4
{[%clk 0:00:03.7]} 40... Bg5 {[%clk 0:00:04.9]} 41. Kg3 {[%clk 0:00:03.2]} 41...
h5 {[%clk 0:00:04.4]} 42. Nf2 {[%clk 0:00:03]} 42... h4+ {[%clk 0:00:03.9]} 43.
Kf3 {[%clk 0:00:03.6]} 43... Bf6 {[%clk 0:00:04]} 44. Ne4 {[%clk 0:00:03.6]}
44... Bc6 {[%clk 0:00:04.2]} 45. Kf4 {[%clk 0:00:04.2]} 45... Nd5+ {[%clk
0:00:03.8]} 46. Kg4 {[%clk 0:00:03.9]} 46... Be7 {[%clk 0:00:03.6]} 47. Rc1
{[%clk 0:00:03.7]} 47... Bd7+ {[%clk 0:00:04]} 48. Kf3 {[%clk 0:00:03.4]} 48...
Bf5 {[%clk 0:00:03.5]} 49. Nc5 {[%clk 0:00:04]} 49... Bf6 {[%clk 0:00:03.3]} 50.
Rd1 {[%clk 0:00:04.4]} 50... Nc3 {[%clk 0:00:03.5]} 51. Re1 {[%clk 0:00:03.5]}
51... Nb5 {[%clk 0:00:04]} 52. Ne4 {[%clk 0:00:03.9]} 52... Nd4+ {[%clk
0:00:03.6]} 53. Kf2 {[%clk 0:00:04.4]} 53... Be5 {[%clk 0:00:03.9]} 54. Kf1
{[%clk 0:00:03]} 54... Bf4 {[%clk 0:00:03.7]} 55. Nf2 {[%clk 0:00:02.8]} 55...
Nc2 {[%clk 0:00:03.3]} 56. Re7 {[%clk 0:00:01.2]} 56... Ne3+ {[%clk 0:00:03.2]}
57. Kg1 {[%clk 0:00:01.8]} 57... Bg3 {[%clk 0:00:03.7]} 58. Ne4 {[%clk
0:00:01.1]} 58... Bf4 {[%clk 0:00:03]} 59. Re8 {[%clk 0:00:01.2]} 59... Nc4
{[%clk 0:00:02.9]} 60. Nc5 {[%clk 0:00:01.6]} 60... Be3+ {[%clk 0:00:03.1]} 61.
Rxe3 {[%clk 0:00:01.3]} 61... Nxe3 {[%clk 0:00:03.2]} 62. b5 {[%clk 0:00:01.1]}
62... Nd5 {[%clk 0:00:03.4]} 63. a4 {[%clk 0:00:01.6]} 63... Nc3 {[%clk
0:00:02.1]} 64. b6 {[%clk 0:00:01.6]} 64... Bc8 {[%clk 0:00:01.3]} 65. a5 {[%clk
0:00:02]} 1-0

[Event "Early-Titled-Tuesday-Blitz-January-16-2024"]
[Site "Chess.com"]
[Date "2024.01.16"]
[Round "9"]
[White "KnightmareJoker"]
[Black "Zampronha1971"]
[Result "0-1"]
[WhiteElo "2117"]
[BlackElo "2349"]
[TimeControl "180+1"]
[EndTime "9:49:39 PST"]
[Termination "Zampronha1971 won by resignation"]

1. e4 {[%clk 0:03:00.9]} 1... c5 {[%clk 0:02:57.8]} 2. Nf3 {[%clk 0:03:01.2]}
2... e6 {[%clk 0:02:58.2]} 3. d4 {[%clk 0:03:01.9]} 3... cxd4 {[%clk 0:02:59.1]}
4. Nxd4 {[%clk 0:03:02.5]} 4... Nc6 {[%clk 0:02:59.7]} 5. Nc3 {[%clk 0:03:01.4]}
5... Qc7 {[%clk 0:02:59.8]} 6. Be2 {[%clk 0:03:00.5]} 6... a6 {[%clk 0:03:00]}
7. Be3 {[%clk 0:03:00.3]} 7... Nf6 {[%clk 0:02:59.1]} 8. O-O {[%clk 0:03:00]}
8... Ne5 {[%clk 0:02:59]} 9. f4 {[%clk 0:02:31.3]} 9... Nc4 {[%clk 0:02:59]} 10.
Bxc4 {[%clk 0:02:16.6]} 10... Qxc4 {[%clk 0:02:59.9]} 11. e5 {[%clk 0:02:14.3]}
11... Nd5 {[%clk 0:02:58.7]} 12. Nxd5 {[%clk 0:02:14.2]} 12... Qxd5 {[%clk
0:02:59.6]} 13. Nf3 {[%clk 0:02:08.1]} 13... Bc5 {[%clk 0:02:54.1]} 14. Bxc5
{[%clk 0:01:59.9]} 14... Qxc5+ {[%clk 0:02:53.6]} 15. Qd4 {[%clk 0:01:40.1]}
15... Qxd4+ {[%clk 0:02:53.4]} 16. Nxd4 {[%clk 0:01:40.6]} 16... f6 {[%clk
0:02:33.8]} 17. a4 {[%clk 0:01:36.7]} 17... b6 {[%clk 0:02:28.5]} 18. a5 {[%clk
0:01:22.2]} 18... b5 {[%clk 0:02:25.2]} 19. c4 {[%clk 0:01:22]} 19... bxc4
{[%clk 0:02:23.3]} 20. Rfc1 {[%clk 0:01:18.1]} 20... Bb7 {[%clk 0:02:22.9]} 21.
Rxc4 {[%clk 0:01:17.9]} 21... Bd5 {[%clk 0:02:22.1]} 22. Rc3 {[%clk 0:00:57]}
22... fxe5 {[%clk 0:02:22.5]} 23. fxe5 {[%clk 0:00:57.1]} 23... Ke7 {[%clk
0:02:22.9]} 24. Rac1 {[%clk 0:00:48.6]} 24... Rab8 {[%clk 0:02:21.1]} 25. b3
{[%clk 0:00:47.4]} 25... Rb4 {[%clk 0:02:18.2]} 26. Nc2 {[%clk 0:00:37.4]} 26...
Rxb3 {[%clk 0:02:15.1]} 27. Rxb3 {[%clk 0:00:37.9]} 27... Bxb3 {[%clk
0:02:15.7]} 28. Nb4 {[%clk 0:00:38.6]} 28... Ra8 {[%clk 0:02:10.9]} 29. Rc3
{[%clk 0:00:39]} 29... Ba4 {[%clk 0:02:04.9]} 30. Rh3 {[%clk 0:00:37.6]} 30...
h6 {[%clk 0:02:02.1]} 31. Rg3 {[%clk 0:00:37.9]} 31... Kf7 {[%clk 0:02:01.9]}
32. Rf3+ {[%clk 0:00:38]} 32... Kg8 {[%clk 0:02:01.8]} 33. Rc3 {[%clk
0:00:34.4]} 33... Bb5 {[%clk 0:01:57.8]} 34. Rc7 {[%clk 0:00:33.9]} 34... Kf7
{[%clk 0:01:30.3]} 35. Kf2 {[%clk 0:00:32.4]} 35... Kg6 {[%clk 0:01:30.1]} 36.
Kg3 {[%clk 0:00:25.4]} 36... Kf5 {[%clk 0:01:30.1]} 37. Rc5 {[%clk 0:00:21.2]}
37... Ke4 {[%clk 0:01:13.1]} 38. Nc2 {[%clk 0:00:21.8]} 38... Rf8 {[%clk
0:01:07.8]} 39. Na3 {[%clk 0:00:21.1]} 39... Kd4 {[%clk 0:00:53.9]} 40. Rc7
{[%clk 0:00:15.4]} 40... Bc6 {[%clk 0:00:47.9]} 41. Ra7 {[%clk 0:00:15.5]} 41...
Ra8 {[%clk 0:00:40.7]} 42. Rc7 {[%clk 0:00:10.2]} 42... Kxe5 {[%clk 0:00:38.1]}
43. Nc4+ {[%clk 0:00:10.8]} 43... Kd4 {[%clk 0:00:34]} 44. Nb6 {[%clk
0:00:11.1]} 44... Rd8 {[%clk 0:00:26.8]} 45. Ra7 {[%clk 0:00:10.3]} 45... Bb5
{[%clk 0:00:24.2]} 46. Rc7 {[%clk 0:00:10.2]} 46... e5 {[%clk 0:00:22.4]} 47.
Rc1 {[%clk 0:00:09.4]} 47... e4 {[%clk 0:00:19.4]} 48. Rd1+ {[%clk 0:00:09.4]}
48... Bd3 {[%clk 0:00:19.3]} 49. Kf4 {[%clk 0:00:09.4]} 49... Rf8+ {[%clk
0:00:18.3]} 50. Kg3 {[%clk 0:00:10.1]} 50... d5 {[%clk 0:00:18.5]} 51. Rc1
{[%clk 0:00:07.3]} 51... e3 {[%clk 0:00:17.7]} 52. Na4 {[%clk 0:00:04.3]} 52...
Rf1 {[%clk 0:00:17.3]} 53. Rxf1 {[%clk 0:00:02.5]} 53... Bxf1 {[%clk 0:00:17.2]}
54. Nb6 {[%clk 0:00:02.8]} 54... Kc5 {[%clk 0:00:11.8]} 55. Nd7+ {[%clk
0:00:02.9]} 55... Kb5 {[%clk 0:00:11.7]} 56. Kf3 {[%clk 0:00:03]} 56... d4
{[%clk 0:00:11.5]} 57. Ne5 {[%clk 0:00:02.7]} 57... Bc4 {[%clk 0:00:06.7]} 58.
Nd7 {[%clk 0:00:02]} 58... Bd5+ {[%clk 0:00:05.5]} 59. Ke2 {[%clk 0:00:01.8]}
59... Bxg2 {[%clk 0:00:05.3]} 60. Ne5 {[%clk 0:00:01.6]} 60... Kc5 {[%clk
0:00:05.3]} 61. Nd3+ {[%clk 0:00:01.8]} 61... Kc4 {[%clk 0:00:04.3]} 62. Ne5+
{[%clk 0:00:02.1]} 62... Kc3 {[%clk 0:00:04.9]} 63. Nd3 {[%clk 0:00:02.5]} 63...
Be4 {[%clk 0:00:05]} 64. Nc5 {[%clk 0:00:02]} 64... Bc2 {[%clk 0:00:05.4]} 65.
Nxa6 {[%clk 0:00:01.6]} 65... d3+ {[%clk 0:00:06.3]} 66. Kxe3 {[%clk 0:00:02]}
66... d2 {[%clk 0:00:07]} 67. Nc5 {[%clk 0:00:02.3]} 67... d1=Q {[%clk
0:00:07.3]} 68. Ne4+ {[%clk 0:00:02.7]} 68... Bxe4 {[%clk 0:00:06.3]} 0-1